[Event "Titled Tuesday Blitz March 07 Early 2023"]
[White "Buscar, Michael"]
[Black "Bongo Akanga Ndjila, Barthelemy"]
[WhiteFideId "2603616"]
[BlackFideId "10609431"]
[WhiteElo "2010"]
[BlackElo "1768"]
[Result "0-1"]
[Round "10"]
[TimeControl "180+2"]
[Date "2023.03.07"]
[WhiteClock "0:00:06"]
[BlackClock "0:00:07"]

1. d4 {[%clk 0:03:00]}  d5 {[%clk 0:02:50]} 2. c4 {[%clk 0:02:59]}  e6 {[%clk 0:02:50]} 3. Nc3 {[%clk 0:02:58]}  a6 {[%clk 0:02:49]} 4. cxd5 {[%clk 0:02:52]}  exd5 {[%clk 0:02:49]} 5. g3 {[%clk 0:02:52]}  Nf6 {[%clk 0:02:46]} 6. Nf3 {[%clk 0:02:50]}  Be6 {[%clk 0:02:45]} 7. Bg2 {[%clk 0:02:49]}  Bd6 {[%clk 0:02:44]} 8. O-O {[%clk 0:02:46]}  Nbd7 {[%clk 0:02:44]} 9. Bg5 {[%clk 0:02:46]}  c6 {[%clk 0:02:43]} 10. Rb1 {[%clk 0:02:38]}  O-O {[%clk 0:02:42]} 11. b4 {[%clk 0:02:38]}  b5 {[%clk 0:02:37]} 12. a4 {[%clk 0:02:27]}  Nb6 {[%clk 0:02:35]} 13. Ne5 {[%clk 0:02:20]}  Rc8 {[%clk 0:02:29]} 14. a5 {[%clk 0:02:09]}  Nc4 {[%clk 0:02:29]} 15. Nxc4 {[%clk 0:02:09]}  bxc4 {[%clk 0:02:26]} 16. e4 {[%clk 0:02:09]}  Be7 {[%clk 0:02:23]} 17. exd5 {[%clk 0:01:54]}  cxd5 {[%clk 0:02:15]} 18. Qa4 {[%clk 0:01:32]}  Rb8 {[%clk 0:01:27]} 19. Rfe1 {[%clk 0:01:16]}  Re8 {[%clk 0:01:14]} 20. Bf4 {[%clk 0:01:03]}  Rb7 {[%clk 0:01:04]} 21. b5 {[%clk 0:01:00]}  Bd7 {[%clk 0:01:02]} 22. bxa6 {[%clk 0:00:50]}  Rxb1 {[%clk 0:00:59]} 23. Rxb1 {[%clk 0:00:44]}  Bxa4 {[%clk 0:00:52]} 24. a7 {[%clk 0:00:30]}  Qxa5 {[%clk 0:00:52]} 25. Bb8 {[%clk 0:00:23]}  Bb3 {[%clk 0:00:48]} 26. g4 {[%clk 0:00:16]}  h6 {[%clk 0:00:41]} 27. h4 {[%clk 0:00:15]}  Nd7 {[%clk 0:00:20]} 28. Nxd5 {[%clk 0:00:13]}  Nxb8 {[%clk 0:00:18]} 29. Nxe7+ {[%clk 0:00:14]}  Kf8 {[%clk 0:00:17]} 30. axb8=Q {[%clk 0:00:12]}  Rxb8 {[%clk 0:00:17]} 31. Nc6 {[%clk 0:00:12]}  Qa2 {[%clk 0:00:16]} 32. Re1 {[%clk 0:00:10]}  Re8 {[%clk 0:00:16]} 33. Rc1 {[%clk 0:00:10]}  Re2 {[%clk 0:00:14]} 34. Rf1 {[%clk 0:00:06]}  c3 {[%clk 0:00:11]} 35. Nb4 {[%clk 0:00:05]}  Qa3 {[%clk 0:00:09]} 36. Nd3 {[%clk 0:00:06]}  Bc4 {[%clk 0:00:09]} 37. Nc1 {[%clk 0:00:06]}  Rc2 {[%clk 0:00:07]} 38. Re1 {[%clk 0:00:06]}  Rxc1 {[%clk 0:00:07]} 0-1


[Site "https://www.chess.com"]

[Event "Titled Tuesday Blitz March 07 Early 2023"]
[White "De Souza, Cristiano Gomes"]
[Black "Sarkar, Justin"]
[WhiteFideId "2151758"]
[BlackFideId "2010011"]
[WhiteElo "2068"]
[BlackElo "2189"]
[Result "0-1"]
[Round "10"]
[TimeControl "180+2"]
[Date "2023.03.07"]
[WhiteClock "0:01:38"]
[BlackClock "0:00:04"]

1. d4 {[%clk 0:02:58]}  Nf6 {[%clk 0:02:55]} 2. c4 {[%clk 0:02:57]}  g6 {[%clk 0:02:55]} 3. Nf3 {[%clk 0:02:58]}  Bg7 {[%clk 0:02:54]} 4. Nc3 {[%clk 0:02:58]}  d5 {[%clk 0:02:44]} 5. Bf4 {[%clk 0:02:57]}  c5 {[%clk 0:02:40]} 6. dxc5 {[%clk 0:02:57]}  Qa5 {[%clk 0:02:39]} 7. e3 {[%clk 0:02:54]}  dxc4 {[%clk 0:02:28]} 8. Bxc4 {[%clk 0:02:53]}  Qxc5 {[%clk 0:02:04]} 9. Bb3 {[%clk 0:02:52]}  O-O {[%clk 0:01:54]} 10. O-O {[%clk 0:02:49]}  Nc6 {[%clk 0:01:18]} 11. Rc1 {[%clk 0:02:46]}  Qh5 {[%clk 0:01:12]} 12. Nd5 {[%clk 0:02:33]}  Bg4 {[%clk 0:01:02]} 13. Rxc6 {[%clk 0:02:31]}  bxc6 {[%clk 0:00:52]} 14. Nxe7+ {[%clk 0:02:30]}  Kh8 {[%clk 0:00:52]} 15. Nxc6 {[%clk 0:02:29]}  Ne4 {[%clk 0:00:34]} 16. h3 {[%clk 0:02:23]}  Bxf3 {[%clk 0:00:29]} 17. Qxf3 {[%clk 0:02:23]}  Qxf3 {[%clk 0:00:28]} 18. gxf3 {[%clk 0:02:22]}  Nd2 {[%clk 0:00:28]} 19. Rd1 {[%clk 0:02:22]}  Nxb3 {[%clk 0:00:23]} 20. axb3 {[%clk 0:02:20]}  Bxb2 {[%clk 0:00:22]} 21. Rd7 {[%clk 0:02:14]}  a5 {[%clk 0:00:20]} 22. Bd6 {[%clk 0:02:13]}  Rfc8 {[%clk 0:00:17]} 23. Nd4 {[%clk 0:02:10]}  Rd8 {[%clk 0:00:06]} 24. Be5+ {[%clk 0:02:08]}  Kg8 {[%clk 0:00:06]} 25. Rb7 {[%clk 0:02:02]}  a4 {[%clk 0:00:06]} 26. Nc6 {[%clk 0:02:01]}  Bxe5 {[%clk 0:00:05]} 27. Nxe5 {[%clk 0:01:58]}  a3 {[%clk 0:00:05]} 28. Ng4 {[%clk 0:01:47]}  a2 {[%clk 0:00:04]} 29. Nh6+ {[%clk 0:01:47]}  Kg7 {[%clk 0:00:04]} 30. Nxf7 {[%clk 0:01:46]}  a1=Q+ {[%clk 0:00:04]} 31. Kg2 {[%clk 0:01:46]}  Ra7 {[%clk 0:00:04]} 32. Rxa7 {[%clk 0:01:44]}  Qxa7 {[%clk 0:00:03]} 33. Ne5 {[%clk 0:01:44]}  Qb7 {[%clk 0:00:02]} 34. Ng4 {[%clk 0:01:44]}  Rf8 {[%clk 0:00:02]} 35. e4 {[%clk 0:01:43]}  Qxb3 {[%clk 0:00:02]} 36. Ne3 {[%clk 0:01:43]}  Qd3 {[%clk 0:00:02]} 37. Kg3 {[%clk 0:01:42]}  h5 {[%clk 0:00:02]} 38. h4 {[%clk 0:01:42]}  Rf7 {[%clk 0:00:02]} 39. Kg2 {[%clk 0:01:41]}  Qd6 {[%clk 0:00:02]} 40. Nd5 {[%clk 0:01:39]}  Qe5 {[%clk 0:00:02]} 41. Ne3 {[%clk 0:01:38]}  g5 {[%clk 0:00:02]} 42. Nf5+ {[%clk 0:01:37]}  Rxf5 {[%clk 0:00:02]} 43. exf5 {[%clk 0:01:36]}  Qxf5 {[%clk 0:00:03]} 44. hxg5 {[%clk 0:01:37]}  Qxg5+ {[%clk 0:00:03]} 45. Kh3 {[%clk 0:01:38]}  Qf4 {[%clk 0:00:03]} 46. Kg2 {[%clk 0:01:38]}  h4 {[%clk 0:00:04]} 0-1


[Site "https://www.chess.com"]

[Event "Titled Tuesday Blitz March 07 Early 2023"]
[White "Zaksaite, Salomeja"]
[Black "Baruch, Liam"]
[WhiteFideId "12801496"]
[BlackFideId "14322064"]
[WhiteElo "2059"]
[BlackElo "2074"]
[Result "0-1"]
[Round "10"]
[TimeControl "180+2"]
[Date "2023.03.07"]
[WhiteClock "0:00:01"]
[BlackClock "0:00:29"]

1. d4 {[%clk 0:02:51]}  d5 {[%clk 0:03:00]} 2. Nc3 {[%clk 0:02:50]}  Nf6 {[%clk 0:02:58]} 3. Bf4 {[%clk 0:02:48]}  e6 {[%clk 0:02:55]} 4. Nb5 {[%clk 0:02:46]}  Na6 {[%clk 0:02:41]} 5. e3 {[%clk 0:02:46]}  c6 {[%clk 0:02:35]} 6. Nc3 {[%clk 0:02:41]}  Bd6 {[%clk 0:02:27]} 7. Bxa6 {[%clk 0:02:37]}  bxa6 {[%clk 0:02:26]} 8. Nge2 {[%clk 0:02:32]}  Rb8 {[%clk 0:02:19]} 9. b3 {[%clk 0:02:30]}  Bxf4 {[%clk 0:02:13]} 10. exf4 {[%clk 0:02:20]}  Qa5 {[%clk 0:01:58]} 11. Qd2 {[%clk 0:02:20]}  c5 {[%clk 0:01:45]} 12. O-O {[%clk 0:02:14]}  O-O {[%clk 0:01:38]} 13. Rfd1 {[%clk 0:01:20]}  cxd4 {[%clk 0:01:17]} 14. Nxd4 {[%clk 0:01:16]}  Qc7 {[%clk 0:01:17]} 15. Nce2 {[%clk 0:01:03]}  Ne4 {[%clk 0:01:14]} 16. Qe3 {[%clk 0:01:01]}  Bb7 {[%clk 0:00:51]} 17. Ng3 {[%clk 0:00:21]}  Nxg3 {[%clk 0:00:39]} 18. hxg3 {[%clk 0:00:16]}  Rbc8 {[%clk 0:00:36]} 19. Re1 {[%clk 0:00:13]}  Qc3 {[%clk 0:00:35]} 20. Rad1 {[%clk 0:00:11]}  Rfe8 {[%clk 0:00:32]} 21. f5 {[%clk 0:00:09]}  Qxe3 {[%clk 0:00:31]} 22. Rxe3 {[%clk 0:00:08]}  e5 {[%clk 0:00:31]} 23. Nf3 {[%clk 0:00:05]}  f6 {[%clk 0:00:32]} 24. Rd2 {[%clk 0:00:02]}  d4 {[%clk 0:00:31]} 25. Re1 {[%clk 0:00:01]}  Rc7 {[%clk 0:00:31]} 26. g4 {[%clk 0:00:01]}  Bxf3 {[%clk 0:00:29]} 0-1


[Site "https://www.chess.com"]

[Event "Titled Tuesday Blitz March 07 Early 2023"]
[White "Qashashvili, Alexandre"]
[Black "Quirke, Jeffrey"]
[WhiteFideId "13600842"]
[BlackFideId "2013029"]
[WhiteElo "2405"]
[BlackElo "2197"]
[Result "1/2-1/2"]
[Round "10"]
[TimeControl "180+2"]
[Date "2023.03.07"]
[WhiteClock "0:00:06"]
[BlackClock "0:00:11"]

1. e4 {[%clk 0:02:03]}  g6 {[%clk 0:02:56]} 2. Nc3 {[%clk 0:02:01]}  Bg7 {[%clk 0:02:56]} 3. Nf3 {[%clk 0:02:02]}  d6 {[%clk 0:02:55]} 4. Bb5+ {[%clk 0:01:59]}  Nd7 {[%clk 0:02:52]} 5. d3 {[%clk 0:01:58]}  a6 {[%clk 0:02:51]} 6. Bxd7+ {[%clk 0:01:58]}  Qxd7 {[%clk 0:02:47]} 7. Be3 {[%clk 0:01:59]}  c5 {[%clk 0:02:42]} 8. Qd2 {[%clk 0:01:58]}  b5 {[%clk 0:02:40]} 9. h3 {[%clk 0:01:57]}  Bb7 {[%clk 0:02:39]} 10. a3 {[%clk 0:01:57]}  a5 {[%clk 0:02:18]} 11. Nd1 {[%clk 0:01:52]}  b4 {[%clk 0:02:14]} 12. axb4 {[%clk 0:01:52]}  axb4 {[%clk 0:02:14]} 13. Rxa8+ {[%clk 0:01:52]}  Bxa8 {[%clk 0:02:15]} 14. c3 {[%clk 0:01:53]}  bxc3 {[%clk 0:02:14]} 15. bxc3 {[%clk 0:01:53]}  Nf6 {[%clk 0:02:14]} 16. Bh6 {[%clk 0:01:53]}  O-O {[%clk 0:02:14]} 17. h4 {[%clk 0:01:54]}  Bxh6 {[%clk 0:01:50]} 18. Qxh6 {[%clk 0:01:55]}  Rb8 {[%clk 0:01:47]} 19. Ng5 {[%clk 0:01:51]}  Qg4 {[%clk 0:01:19]} 20. O-O {[%clk 0:01:48]}  Qh5 {[%clk 0:01:16]} 21. Qxh5 {[%clk 0:01:47]}  Nxh5 {[%clk 0:01:16]} 22. Ne3 {[%clk 0:01:42]}  Nf4 {[%clk 0:01:13]} 23. Rd1 {[%clk 0:01:27]}  Ne2+ {[%clk 0:01:12]} 24. Kh2 {[%clk 0:01:28]}  Nxc3 {[%clk 0:01:13]} 25. Ra1 {[%clk 0:01:27]}  Nb5 {[%clk 0:01:02]} 26. Nc4 {[%clk 0:01:12]}  h6 {[%clk 0:01:00]} 27. Nf3 {[%clk 0:01:12]}  d5 {[%clk 0:00:41]} 28. Nce5 {[%clk 0:01:11]}  dxe4 {[%clk 0:00:40]} 29. dxe4 {[%clk 0:01:11]}  Bxe4 {[%clk 0:00:39]} 30. Nd7 {[%clk 0:01:07]}  Rc8 {[%clk 0:00:35]} 31. Rc1 {[%clk 0:01:06]}  c4 {[%clk 0:00:33]} 32. Nb6 {[%clk 0:01:05]}  Rc7 {[%clk 0:00:22]} 33. Rxc4 {[%clk 0:01:01]}  Rxc4 {[%clk 0:00:22]} 34. Nxc4 {[%clk 0:01:02]}  Bxf3 {[%clk 0:00:22]} 35. gxf3 {[%clk 0:01:02]}  Nd4 {[%clk 0:00:23]} 36. Nd2 {[%clk 0:00:45]}  h5 {[%clk 0:00:23]} 37. Kg3 {[%clk 0:00:44]}  Kg7 {[%clk 0:00:24]} 38. Kf4 {[%clk 0:00:43]}  e6 {[%clk 0:00:24]} 39. Kg3 {[%clk 0:00:40]}  Nf5+ {[%clk 0:00:24]} 40. Kh3 {[%clk 0:00:40]}  Kf6 {[%clk 0:00:25]} 41. Ne4+ {[%clk 0:00:40]}  Ke7 {[%clk 0:00:25]} 42. f4 {[%clk 0:00:37]}  f6 {[%clk 0:00:24]} 43. Nd2 {[%clk 0:00:33]}  Kd6 {[%clk 0:00:23]} 44. Ne4+ {[%clk 0:00:31]}  Ke7 {[%clk 0:00:24]} 45. Nd2 {[%clk 0:00:29]}  e5 {[%clk 0:00:24]} 46. fxe5 {[%clk 0:00:28]}  fxe5 {[%clk 0:00:25]} 47. Nf3 {[%clk 0:00:25]}  Kf6 {[%clk 0:00:24]} 48. Ng5 {[%clk 0:00:25]}  Nd6 {[%clk 0:00:23]} 49. Kg3 {[%clk 0:00:25]}  Kf5 {[%clk 0:00:23]} 50. f3 {[%clk 0:00:21]}  e4 {[%clk 0:00:19]} 51. Nh3 {[%clk 0:00:09]}  e3 {[%clk 0:00:18]} 52. Kg2 {[%clk 0:00:09]}  Nc4 {[%clk 0:00:16]} 53. Kf1 {[%clk 0:00:09]}  Ke5 {[%clk 0:00:13]} 54. Ke2 {[%clk 0:00:09]}  Kd4 {[%clk 0:00:12]} 55. Nf4 {[%clk 0:00:09]}  Ne5 {[%clk 0:00:11]} 56. Ne6+ {[%clk 0:00:07]}  Kd5 {[%clk 0:00:10]} 57. Nf4+ {[%clk 0:00:07]}  Kd4 {[%clk 0:00:10]} 58. Ne6+ {[%clk 0:00:08]}  Kd5 {[%clk 0:00:10]} 59. Nf4+ {[%clk 0:00:06]}  Kd4 {[%clk 0:00:11]} 1/2-1/2


[Site "https://www.chess.com"]

[Event "Titled Tuesday Blitz March 07 Early 2023"]
[White "Chakravarthi Reddy, M"]
[Black "Osuna Vega, Enrique"]
[WhiteFideId "25009532"]
[BlackFideId "2219549"]
[WhiteElo "2201"]
[BlackElo "2168"]
[Result "0-1"]
[Round "10"]
[TimeControl "180+2"]
[Date "2023.03.07"]
[WhiteClock "0:02:33"]
[BlackClock "0:01:35"]

1. c4 {[%clk 0:03:00]}  c6 {[%clk 0:02:54]} 2. Nf3 {[%clk 0:02:59]}  Nf6 {[%clk 0:02:53]} 3. e3 {[%clk 0:02:59]}  g6 {[%clk 0:02:52]} 4. Nc3 {[%clk 0:02:59]}  Bg7 {[%clk 0:02:52]} 5. Ke2 {[%clk 0:02:57]}  O-O {[%clk 0:02:47]} 6. Ke1 {[%clk 0:02:56]}  d5 {[%clk 0:02:47]} 7. cxd5 {[%clk 0:02:56]}  Nxd5 {[%clk 0:02:45]} 8. d4 {[%clk 0:02:57]}  Nxc3 {[%clk 0:02:25]} 9. bxc3 {[%clk 0:02:58]}  c5 {[%clk 0:02:25]} 10. Bd3 {[%clk 0:02:58]}  Nc6 {[%clk 0:02:20]} 11. Ba3 {[%clk 0:02:58]}  cxd4 {[%clk 0:02:16]} 12. cxd4 {[%clk 0:02:58]}  Qa5+ {[%clk 0:02:13]} 13. Kf1 {[%clk 0:02:47]}  Qxa3 {[%clk 0:02:12]} 14. h4 {[%clk 0:02:48]}  h5 {[%clk 0:02:09]} 15. Ng5 {[%clk 0:02:39]}  b6 {[%clk 0:02:00]} 16. Kg1 {[%clk 0:02:39]}  Ba6 {[%clk 0:01:57]} 17. Be4 {[%clk 0:02:37]}  Rac8 {[%clk 0:01:55]} 18. Rc1 {[%clk 0:02:36]}  Bb7 {[%clk 0:01:41]} 19. Qf3 {[%clk 0:02:35]}  Qxc1+ {[%clk 0:01:35]} 20. Kh2 {[%clk 0:02:33]}  Qc3 {[%clk 0:01:35]} 0-1


[Site "https://www.chess.com"]

[Event "Titled Tuesday Blitz March 07 Early 2023"]
[White "Piesik, Piotr"]
[Black "Michalski, Olaf"]
[WhiteFideId "1136194"]
[BlackFideId "1106740"]
[WhiteElo "2311"]
[BlackElo "2173"]
[Result "1-0"]
[Round "10"]
[TimeControl "180+2"]
[Date "2023.03.07"]
[WhiteClock "0:01:26"]
[BlackClock "0:00:04"]

1. Nf3 {[%clk 0:02:55]}  d6 {[%clk 0:02:59]} 2. d4 {[%clk 0:02:54]}  Bg4 {[%clk 0:02:55]} 3. e4 {[%clk 0:02:53]}  Nf6 {[%clk 0:02:52]} 4. Bd3 {[%clk 0:02:52]}  Nc6 {[%clk 0:02:52]} 5. c3 {[%clk 0:02:52]}  e5 {[%clk 0:02:52]} 6. h3 {[%clk 0:02:52]}  Bxf3 {[%clk 0:02:49]} 7. Qxf3 {[%clk 0:02:51]}  exd4 {[%clk 0:02:48]} 8. cxd4 {[%clk 0:02:51]}  Nxd4 {[%clk 0:02:48]} 9. Qg3 {[%clk 0:02:51]}  g6 {[%clk 0:02:30]} 10. Nc3 {[%clk 0:02:48]}  Bg7 {[%clk 0:02:23]} 11. O-O {[%clk 0:02:44]}  O-O {[%clk 0:02:20]} 12. Bg5 {[%clk 0:02:40]}  Ne6 {[%clk 0:02:19]} 13. Be3 {[%clk 0:02:39]}  c6 {[%clk 0:01:53]} 14. Rad1 {[%clk 0:02:37]}  Qe7 {[%clk 0:01:49]} 15. Bc2 {[%clk 0:02:28]}  Rad8 {[%clk 0:01:43]} 16. Bxa7 {[%clk 0:02:26]}  c5 {[%clk 0:01:28]} 17. Bb6 {[%clk 0:02:23]}  Rd7 {[%clk 0:01:28]} 18. Ba4 {[%clk 0:02:18]}  Nh5 {[%clk 0:01:05]} 19. Qg4 {[%clk 0:02:12]}  Nf6 {[%clk 0:00:40]} 20. Qg3 {[%clk 0:02:11]}  Nd4 {[%clk 0:00:37]} 21. Rfe1 {[%clk 0:02:05]}  Ra8 {[%clk 0:00:25]} 22. Bxd7 {[%clk 0:01:58]}  Nxd7 {[%clk 0:00:25]} 23. Nd5 {[%clk 0:01:57]}  Qe5 {[%clk 0:00:17]} 24. Qxe5 {[%clk 0:01:49]}  Bxe5 {[%clk 0:00:17]} 25. a3 {[%clk 0:01:43]}  Ra6 {[%clk 0:00:15]} 26. Bd8 {[%clk 0:01:36]}  Kg7 {[%clk 0:00:08]} 27. f4 {[%clk 0:01:34]}  Bf6 {[%clk 0:00:07]} 28. Bxf6+ {[%clk 0:01:32]}  Nxf6 {[%clk 0:00:07]} 29. Nxf6 {[%clk 0:01:32]}  Kxf6 {[%clk 0:00:07]} 30. e5+ {[%clk 0:01:32]}  dxe5 {[%clk 0:00:07]} 31. Rxe5 {[%clk 0:01:33]}  Rb6 {[%clk 0:00:06]} 32. Rd2 {[%clk 0:01:27]}  Rb5 {[%clk 0:00:04]} 33. Rxd4 {[%clk 0:01:26]} 1-0


[Site "https://www.chess.com"]

[Event "Titled Tuesday Blitz March 07 Early 2023"]
[White "Sabar, Ethmane Daouda"]
[Black "Vargas, Mauricio"]
[WhiteFideId "19600097"]
[BlackFideId "4404572"]
[WhiteElo "1950"]
[BlackElo "2025"]
[Result "0-1"]
[Round "10"]
[TimeControl "180+2"]
[Date "2023.03.07"]
[WhiteClock "0:00:11"]
[BlackClock "0:00:20"]

1. e4 {[%clk 0:03:00]}  e5 {[%clk 0:02:58]} 2. Bc4 {[%clk 0:02:59]}  c6 {[%clk 0:02:56]} 3. d4 {[%clk 0:02:55]}  d5 {[%clk 0:02:56]} 4. exd5 {[%clk 0:02:53]}  cxd5 {[%clk 0:02:56]} 5. Bb3 {[%clk 0:02:54]}  e4 {[%clk 0:02:46]} 6. Nc3 {[%clk 0:02:54]}  Nf6 {[%clk 0:02:46]} 7. Bg5 {[%clk 0:02:53]}  Be6 {[%clk 0:02:37]} 8. f3 {[%clk 0:02:51]}  Nbd7 {[%clk 0:02:26]} 9. fxe4 {[%clk 0:02:49]}  dxe4 {[%clk 0:02:23]} 10. d5 {[%clk 0:02:44]}  Bf5 {[%clk 0:02:21]} 11. Nge2 {[%clk 0:02:30]}  Bc5 {[%clk 0:02:19]} 12. Nd4 {[%clk 0:02:24]}  Bg6 {[%clk 0:02:15]} 13. Na4 {[%clk 0:02:09]}  Bb4+ {[%clk 0:02:07]} 14. c3 {[%clk 0:02:05]}  Ba5 {[%clk 0:02:00]} 15. O-O {[%clk 0:02:05]}  h6 {[%clk 0:02:00]} 16. Bh4 {[%clk 0:02:01]}  O-O {[%clk 0:01:59]} 17. Nf5 {[%clk 0:01:59]}  b5 {[%clk 0:01:52]} 18. Nc5 {[%clk 0:01:35]}  Nxc5 {[%clk 0:01:50]} 19. Nxh6+ {[%clk 0:01:36]}  gxh6 {[%clk 0:01:40]} 20. Bxf6 {[%clk 0:01:35]}  Qd6 {[%clk 0:01:23]} 21. Bc2 {[%clk 0:01:34]}  Nd3 {[%clk 0:01:16]} 22. Bxd3 {[%clk 0:01:22]}  exd3 {[%clk 0:01:15]} 23. Qd2 {[%clk 0:01:20]}  Kh7 {[%clk 0:00:59]} 24. Rf3 {[%clk 0:01:14]}  Bb6+ {[%clk 0:00:52]} 25. Kh1 {[%clk 0:01:13]}  Rae8 {[%clk 0:00:46]} 26. Raf1 {[%clk 0:00:53]}  Re2 {[%clk 0:00:45]} 27. Qc1 {[%clk 0:00:47]}  d2 {[%clk 0:00:40]} 28. Qd1 {[%clk 0:00:45]}  Rfe8 {[%clk 0:00:34]} 29. b3 {[%clk 0:00:30]}  Qxd5 {[%clk 0:00:32]} 30. h3 {[%clk 0:00:15]}  Re1 {[%clk 0:00:25]} 31. Kh2 {[%clk 0:00:10]}  Rxd1 {[%clk 0:00:24]} 32. Rxd1 {[%clk 0:00:11]}  Re1 {[%clk 0:00:20]} 0-1


[Site "https://www.chess.com"]

[Event "Titled Tuesday Blitz March 07 Early 2023"]
[White "Tanmay Jain"]
[Black "Dilmukhametov, Artur"]
[WhiteFideId "45015481"]
[BlackFideId "24179922"]
[WhiteElo "2032"]
[BlackElo "2199"]
[Result "1-0"]
[Round "10"]
[TimeControl "180+2"]
[Date "2023.03.07"]
[WhiteClock "0:02:43"]
[BlackClock "0:02:09"]

1. Nf3 {[%clk 0:03:00]}  d5 {[%clk 0:02:57]} 2. g3 {[%clk 0:03:01]}  Nf6 {[%clk 0:02:55]} 3. Bg2 {[%clk 0:03:02]}  g6 {[%clk 0:02:55]} 4. O-O {[%clk 0:03:03]}  Bg7 {[%clk 0:02:55]} 5. d4 {[%clk 0:03:03]}  Nc6 {[%clk 0:02:54]} 6. c3 {[%clk 0:03:04]}  Bg4 {[%clk 0:02:53]} 7. Re1 {[%clk 0:03:04]}  Qd7 {[%clk 0:02:53]} 8. Nbd2 {[%clk 0:03:03]}  Bh3 {[%clk 0:02:51]} 9. e4 {[%clk 0:03:01]}  Bxg2 {[%clk 0:02:50]} 10. Kxg2 {[%clk 0:03:01]}  dxe4 {[%clk 0:02:49]} 11. Nxe4 {[%clk 0:03:02]}  Nxe4 {[%clk 0:02:48]} 12. Rxe4 {[%clk 0:03:03]}  O-O-O {[%clk 0:02:48]} 13. Bf4 {[%clk 0:03:03]}  Qf5 {[%clk 0:02:46]} 14. Qe2 {[%clk 0:03:01]}  Rde8 {[%clk 0:02:42]} 15. Rd1 {[%clk 0:02:58]}  h6 {[%clk 0:02:41]} 16. d5 {[%clk 0:02:54]}  Nb8 {[%clk 0:02:39]} 17. Rxe7 {[%clk 0:02:53]}  Rxe7 {[%clk 0:02:14]} 18. Qxe7 {[%clk 0:02:54]}  Na6 {[%clk 0:02:12]} 19. d6 {[%clk 0:02:45]}  Bf6 {[%clk 0:02:09]} 20. d7+ {[%clk 0:02:43]} 1-0


[Site "https://www.chess.com"]

[Event "Titled Tuesday Blitz March 07 Early 2023"]
[White "Nihal Sarin"]
[Black "Bluebaum, Matthias"]
[WhiteFideId "25092340"]
[BlackFideId "24651516"]
[WhiteElo "2689"]
[BlackElo "2638"]
[Result "1-0"]
[Round "11"]
[TimeControl "180+2"]
[Date "2023.03.07"]
[WhiteClock "0:00:05"]
[BlackClock "0:00:04"]

1. Nf3 {[%clk 0:03:00]}  d5 {[%clk 0:02:59]} 2. e3 {[%clk 0:03:01]}  c5 {[%clk 0:02:59]} 3. b3 {[%clk 0:03:01]}  a6 {[%clk 0:03:00]} 4. Bb2 {[%clk 0:03:00]}  Nc6 {[%clk 0:03:00]} 5. d4 {[%clk 0:03:01]}  cxd4 {[%clk 0:03:01]} 6. Nxd4 {[%clk 0:03:02]}  Nf6 {[%clk 0:03:02]} 7. Nxc6 {[%clk 0:03:01]}  bxc6 {[%clk 0:03:03]} 8. Nd2 {[%clk 0:03:02]}  e6 {[%clk 0:03:03]} 9. Bd3 {[%clk 0:03:01]}  Bd6 {[%clk 0:03:03]} 10. O-O {[%clk 0:03:02]}  O-O {[%clk 0:03:01]} 11. c4 {[%clk 0:02:35]}  e5 {[%clk 0:02:59]} 12. Rc1 {[%clk 0:02:29]}  Qe7 {[%clk 0:02:55]} 13. Be2 {[%clk 0:02:21]}  Bb7 {[%clk 0:02:47]} 14. Nf3 {[%clk 0:02:18]}  Ne4 {[%clk 0:02:37]} 15. Rc2 {[%clk 0:02:15]}  f5 {[%clk 0:02:25]} 16. cxd5 {[%clk 0:01:41]}  cxd5 {[%clk 0:02:26]} 17. Nd2 {[%clk 0:01:42]}  Nf6 {[%clk 0:02:19]} 18. Qa1 {[%clk 0:01:42]}  Rae8 {[%clk 0:02:12]} 19. Rfc1 {[%clk 0:01:41]}  h6 {[%clk 0:02:09]} 20. a4 {[%clk 0:01:32]}  e4 {[%clk 0:01:11]} 21. g3 {[%clk 0:01:03]}  Qe6 {[%clk 0:00:58]} 22. Bd4 {[%clk 0:00:48]}  g5 {[%clk 0:00:38]} 23. b4 {[%clk 0:00:33]}  f4 {[%clk 0:00:38]} 24. Nb3 {[%clk 0:00:34]}  fxg3 {[%clk 0:00:22]} 25. fxg3 {[%clk 0:00:35]}  Nd7 {[%clk 0:00:09]} 26. Nc5 {[%clk 0:00:31]}  Bxc5 {[%clk 0:00:10]} 27. bxc5 {[%clk 0:00:31]}  Bc6 {[%clk 0:00:10]} 28. Bh5 {[%clk 0:00:24]}  Rb8 {[%clk 0:00:05]} 29. Rf1 {[%clk 0:00:16]}  Rxf1+ {[%clk 0:00:06]} 30. Qxf1 {[%clk 0:00:16]}  Rf8 {[%clk 0:00:04]} 31. Rf2 {[%clk 0:00:07]}  Rxf2 {[%clk 0:00:04]} 32. Qxf2 {[%clk 0:00:08]}  Bxa4 {[%clk 0:00:04]} 33. h3 {[%clk 0:00:08]}  Bc6 {[%clk 0:00:04]} 34. Bg4 {[%clk 0:00:09]}  Qe7 {[%clk 0:00:04]} 35. Qf5 {[%clk 0:00:08]}  Nf8 {[%clk 0:00:04]} 36. Qc8 {[%clk 0:00:06]}  Bd7 {[%clk 0:00:04]} 37. Qxa6 {[%clk 0:00:06]}  Bxg4 {[%clk 0:00:04]} 38. hxg4 {[%clk 0:00:07]}  Qe6 {[%clk 0:00:04]} 39. Qb7 {[%clk 0:00:05]}  Qxg4 {[%clk 0:00:04]} 40. Qg7# {[%clk 0:00:05]} 1-0


[Site "https://www.chess.com"]

[Event "Titled Tuesday Blitz March 07 Early 2023"]
[White "Vokhidov, Shamsiddin"]
[Black "Shimanov, Aleksandr"]
[WhiteFideId "14204223"]
[BlackFideId "4198603"]
[WhiteElo "2570"]
[BlackElo "2631"]
[Result "1-0"]
[Round "11"]
[TimeControl "180+2"]
[Date "2023.03.07"]
[WhiteClock "0:00:35"]
[BlackClock "0:00:22"]

1. e4 {[%clk 0:03:00]}  c6 {[%clk 0:02:56]} 2. Nf3 {[%clk 0:03:00]}  d5 {[%clk 0:02:56]} 3. Nc3 {[%clk 0:03:01]}  dxe4 {[%clk 0:02:52]} 4. Nxe4 {[%clk 0:03:02]}  Nf6 {[%clk 0:02:52]} 5. Qe2 {[%clk 0:03:02]}  Nxe4 {[%clk 0:02:52]} 6. Qxe4 {[%clk 0:03:03]}  Qd5 {[%clk 0:02:53]} 7. Qf4 {[%clk 0:03:03]}  Qf5 {[%clk 0:02:50]} 8. Qe3 {[%clk 0:03:03]}  Nd7 {[%clk 0:02:37]} 9. c3 {[%clk 0:02:49]}  g6 {[%clk 0:02:32]} 10. d4 {[%clk 0:02:48]}  Bg7 {[%clk 0:02:31]} 11. Bd3 {[%clk 0:02:43]}  Qd5 {[%clk 0:02:31]} 12. O-O {[%clk 0:02:41]}  O-O {[%clk 0:02:26]} 13. Qxe7 {[%clk 0:02:39]}  Nb6 {[%clk 0:01:57]} 14. Qh4 {[%clk 0:02:36]}  Bf5 {[%clk 0:01:51]} 15. Bxf5 {[%clk 0:02:31]}  Qxf5 {[%clk 0:01:52]} 16. Bh6 {[%clk 0:02:30]}  Rfe8 {[%clk 0:01:51]} 17. Bxg7 {[%clk 0:02:26]}  Kxg7 {[%clk 0:01:51]} 18. Rfe1 {[%clk 0:02:18]}  Nc4 {[%clk 0:01:49]} 19. b3 {[%clk 0:02:16]}  Nb2 {[%clk 0:01:43]} 20. Ne5 {[%clk 0:01:55]}  f6 {[%clk 0:01:36]} 21. Ng4 {[%clk 0:01:52]}  h5 {[%clk 0:01:26]} 22. Ne3 {[%clk 0:01:47]}  Qd3 {[%clk 0:01:21]} 23. Qg3 {[%clk 0:01:42]}  Kh7 {[%clk 0:00:58]} 24. Qc7+ {[%clk 0:01:39]}  Kh6 {[%clk 0:00:57]} 25. Qxb7 {[%clk 0:01:38]}  Qxc3 {[%clk 0:00:57]} 26. Rac1 {[%clk 0:01:33]}  Qxd4 {[%clk 0:00:57]} 27. Qxc6 {[%clk 0:00:47]}  Nd3 {[%clk 0:00:53]} 28. Rcd1 {[%clk 0:00:48]}  Rad8 {[%clk 0:00:51]} 29. g3 {[%clk 0:00:36]}  Qb2 {[%clk 0:00:27]} 30. Rxd3 {[%clk 0:00:35]}  Rxd3 {[%clk 0:00:22]} 31. Qxe8 {[%clk 0:00:35]} 1-0


[Site "https://www.chess.com"]